bitfinex/quotes_ETHUSD_20250801
["timestamp","ask_amount","ask_price","bid_price","bid_amount"]
[1754066946509,7.6991935,3608.2,3607.5,2.77198333]
[1754066946709,4.9277,3608.2,3607.3,0.4875]
[1754066946910,4.9277,3608.2,3606.6,2.77268132]
[1754066946911,4.9277,3608.2,3606.9,0.4875]
[1754066947115,0.3449,3608.1,3606.9,0.4875]
[1754066947433,7.26448673,3608.2,3607.4,2.77200784]
[1754066947740,7.26453142,3608.2,3607.5,0.4875]
[1754066947938,2.77155001,3608.1,3607.5,0.4875]
[1754066948235,5.8760744,3608.2,3607.2,0.4875]
[1754066948434,0.3449,3608.0,3607.4,2.77205795]
[1754066948605,0.3449,3608.0,3607.2,0.4875]
[1754066949005,2.77174816,3607.9,3607.2,3.25970425]
[1754066949444,3.11654381,3608.0,3607.3,2.77213729]
[1754066949949,3.11654381,3608.0,3607.2,0.4875]
[1754066949950,1.38300222,3608.0,3607.2,0.4875]
[1754066950100,2.77169544,3607.9,3607.2,3.25973296]
[1754066950306,0.3449,3608.0,3607.2,0.4875]
[1754066950604,0.3449,3608.0,3606.6,3.55]
[1754066950605,0.3449,3608.0,3606.8,3.0]
[1754066950807,0.3449,3608.0,3606.7,2.77259683]
[1754066950808,2.77212452,3607.4,3606.7,2.77259683]
[1754066951024,7.26315681,3607.3,3606.7,3.0]
[1754066951224,4.491,3607.2,3606.6,0.4875]
[1754066951560,4.491,3607.2,3606.7,2.77259105]
[1754066951738,4.491,3607.2,3606.8,0.4875]
[1754066951912,4.491,3607.2,3606.9,2.77239791]
[1754066952217,4.491,3607.1,3606.7,3.436]
[1754066952419,4.491,3607.1,3606.8,2.77254075]
[1754066952738,4.491,3607.1,3607.0,2.77238702]
[1754066952943,4.491,3607.1,3606.9,0.4875]
[1754066953155,4.491,3607.1,3607.0,2.77238702]
[1754066953644,4.491,3607.1,3606.7,5.77260239]
[1754066953818,4.491,3607.1,3606.9,2.77239192]
[1754066954019,4.491,3607.1,3607.0,2.77238702]
[1754066954229,4.491,3607.1,3607.0,3.25988702]
[1754066954606,0.4347,3608.3,3607.0,0.9235]
[1754066954806,2.77162259,3608.0,3607.3,9.30982457]
[1754066955041,7.26246926,3608.2,3607.4,2.77207961]
[1754066955202,7.26246926,3608.2,3607.5,2.77199603]
[1754066955403,5.53795152,3608.2,3607.6,2.77190395]
[1754066955608,4.491,3608.1,3607.8,9.30982457]
[1754066955843,4.491,3608.1,3607.9,0.4738]
[1754066956019,4.491,3608.1,3607.9,2.77163821]
[1754066956217,4.491,3608.1,3608.0,3.24541862]
[1754066956450,0.1384,3608.4,3608.3,2.77137349]
[1754066956661,4.6294,3608.4,3608.0,0.4738]
[1754066956814,4.6294,3608.4,3608.1,0.4738]
[1754066957014,4.6294,3608.4,3608.2,2.77140803]
[1754066957228,4.6294,3608.4,3608.1,2.77151099]
[1754066957416,4.6294,3608.4,3608.1,2.7715418]
[1754066957644,4.6294,3608.4,3608.0,2.77159029]
[1754066957953,4.491,3608.4,3607.8,2.77169997]
[1754066958116,0.1384,3608.3,3607.8,2.77170043]
[1754066958316,0.1384,3608.3,3607.7,2.77183714]
[1754066958647,0.001,3608.5,3607.8,10.24052457]
[1754066958851,4.491,3608.5,3608.4,3.32131138]
[1754066959155,0.001,3608.9,3608.8,2.77100421]
[1754066959456,4.491,3608.9,3608.8,2.77100421]
[1754066959630,0.001,3608.9,3608.8,3.70170421]
[1754066960006,0.001,3608.9,3608.8,4.91282396]
[1754066960231,0.001,3608.9,3608.8,14.36104853]
[1754066961032,0.001,3608.9,3608.8,11.59004432]
[1754066961234,0.001,3608.9,3608.4,0.20944788]
[1754066961235,0.001,3608.9,3608.4,0.4738]
[1754066961451,0.4521,3608.8,3607.9,0.4738]
[1754066961624,0.1384,3608.0,3607.9,2.77169544]
[1754066961951,4.6284,3608.0,3607.9,3.24549544]
[1754066962114,4.6284,3608.0,3607.9,4.25239544]
[1754066962314,4.49,3608.0,3607.9,3.70239544]
[1754066962514,0.1384,3608.5,3607.9,4.39079544]
[1754066962715,4.489,3608.4,3608.1,2.77149101]
[1754066963025,0.1384,3608.7,3608.4,2.77131138]
[1754066963234,7.26016981,3608.6,3607.9,0.55]
[1754066963412,2.90966699,3608.5,3607.8,2.77171722]
[1754066963613,0.1384,3608.1,3607.8,2.77171722]
[1754066963839,0.1384,3608.1,3607.8,3.24551722]
[1754066964152,0.1384,3608.1,3607.8,0.4738]
[1754066964362,4.489,3608.0,3607.8,0.4738]
[1754066964527,4.489,3608.0,3607.8,3.24556368]
[1754066964951,4.489,3608.0,3607.8,0.4738]
[1754066965155,4.489,3608.0,3607.6,0.1384]
[1754066965358,5.40384,3608.0,3606.9,7.06893597]
[1754066965655,4.489,3608.0,3607.5,2.77195433]
[1754066965948,4.489,3608.0,3607.4,2.77206086]
[1754066966144,4.489,3608.0,3607.6,0.4738]
[1754066966312,4.489,3608.0,3607.3,0.4569]
[1754066966514,4.488,3608.0,3607.9,0.55]
[1754066966762,4.488,3608.0,3607.9,0.4738]
[1754066966942,4.488,3608.0,3607.6,0.55]
[1754066967145,4.488,3608.0,3607.8,2.77170177]
[1754066967457,4.488,3608.0,3607.6,3.32190734]
[1754066967458,4.488,3608.0,3607.6,0.55]
[1754066967657,4.488,3608.0,3607.3,0.4738]
[1754066968032,4.488,3608.0,3607.3,2.77214482]
[1754066968420,4.488,3608.0,3607.4,2.77205881]
[1754066968637,4.488,3608.0,3607.3,2.77212881]
[1754066969161,2.7717437,3607.9,3607.2,2.77223122]
[1754066969336,4.488,3608.0,3607.4,2.77203003]
[1754066969655,5.01733472,3608.0,3606.6,12.01383597]
[1754066969853,2.77169544,3607.9,3607.2,2.77220919]
[1754066970018,2.77178324,3607.8,3607.1,2.77229545]
[1754066970553,4.488,3608.0,3607.2,0.4738]
[1754066970755,4.488,3607.9,3607.3,0.94307]
[1754066970955,2.77138818,3608.3,3607.3,0.55]
[1754066970956,4.488,3607.8,3607.3,0.55]
[1754066971256,4.488,3607.8,3607.4,0.4738]
[1754066971618,4.488,3607.8,3607.4,3.24587949]
[1754066971887,4.488,3607.8,3607.4,0.4738]
[1754066972154,4.488,3607.8,3607.6,2.77191287]
[1754066972341,4.488,3607.8,3607.4,0.4738]
[1754066972543,4.488,3607.8,3607.4,3.24585925]
[1754066972739,4.488,3607.8,3607.0,0.4738]
[1754066972941,7.71194533,3607.8,3607.0,2.77236755]
[1754066973141,7.71190473,3607.8,3607.0,2.77236755]
[1754066973347,4.9401,3607.8,3606.8,3.24632555]
[1754066973655,2.77190375,3607.7,3607.0,2.77238312]
[1754066973816,2.77190375,3607.7,3606.9,2.77243619]
[1754066974021,2.77194961,3607.6,3606.8,3.4738]
[1754066974255,2.77213936,3607.4,3606.8,3.4738]
[1754066974462,7.26020661,3607.3,3606.8,0.4738]
[1754066974618,4.488,3607.3,3606.8,3.32253723]
[1754066974825,4.488,3607.3,3606.4,3.55]
[1754066975038,4.488,3607.3,3606.6,0.4738]
[1754066975235,0.1384,3607.2,3606.7,0.1384]
[1754066975531,2.77235899,3607.1,3606.7,0.1384]
[1754066975733,2.91068611,3607.2,3606.7,0.1384]
[1754066975942,2.91066524,3607.2,3606.7,0.4738]
[1754066976143,0.1384,3607.2,3606.7,0.4738]
[1754066976447,0.1384,3607.2,3606.8,0.4738]
[1754066976833,2.91065401,3607.2,3606.7,0.4738]
[1754066977367,0.1384,3607.2,3606.7,0.4738]
[1754066977568,2.77245397,3607.0,3606.7,0.4738]
[1754066977777,2.77252064,3606.9,3606.2,3.24679239]
[1754066977922,4.6254,3606.8,3606.3,0.1384]
[1754066978117,7.39794091,3606.8,3606.3,0.1384]
[1754066978317,4.9391,3606.8,3606.1,0.1384]
[1754066978571,0.1384,3606.6,3606.1,0.1384]
[1754066978726,0.1384,3606.6,3606.2,0.4738]
[1754066978925,0.1384,3606.6,3606.1,3.36835784]
[1754066978926,0.1384,3606.6,3606.3,0.4738]
[1754066979147,2.9111463,3606.6,3606.1,0.1384]
[1754066979320,0.1384,3606.6,3606.2,0.4738]
[1754066979523,0.1384,3606.6,3606.3,0.4738]
[1754066979724,0.1384,3606.6,3606.4,0.4738]
[1754066980143,2.91110967,3606.6,3606.1,0.6122]
[1754066980355,0.1384,3606.6,3606.2,0.4738]
[1754066980554,4.487,3606.5,3606.3,0.4738]
[1754066980850,4.487,3606.5,3606.2,3.22988703]
[1754066981024,4.487,3606.5,3606.4,0.4738]
[1754066981723,4.487,3606.5,3606.1,0.1384]
[1754066981923,4.487,3606.5,3606.2,0.4738]
[1754066982124,4.487,3606.5,3606.2,3.24678792]
[1754066982443,4.487,3606.5,3606.2,0.4738]
[1754066983231,4.487,3606.5,3606.1,0.1384]
[1754066983232,4.487,3606.5,3605.9,3.24900947]
[1754066983431,4.487,3606.5,3606.0,0.1384]
[1754066983742,4.487,3606.5,3606.1,0.4738]
[1754066984141,4.487,3606.5,3605.9,0.002]
[1754066984142,2.77299764,3606.3,3605.9,0.002]
[1754066984372,0.1384,3606.1,3605.9,0.002]
[1754066984566,4.487,3606.0,3605.9,0.002]
[1754066986069,4.487,3606.0,3605.9,0.4607]
[1754066986269,0.1384,3606.1,3606.0,2.77315585]
[1754066986443,0.1384,3606.1,3606.0,3.41770471]
[1754066986649,4.487,3606.2,3606.1,2.77307894]
[1754066986849,4.487,3606.2,3606.1,3.67017894]
[1754066987167,9.43440268,3607.0,3606.6,2.77263285]
[1754066987168,6.662,3607.0,3606.6,2.77263285]
[1754066987369,4.487,3606.9,3606.8,2.77254075]
[1754066987545,0.4414,3608.4,3606.8,0.8971]
[1754066987867,0.1384,3607.9,3607.8,2.77176516]
[1754066988069,0.1384,3608.0,3607.9,2.77169544]
[1754066988254,4.6254,3608.3,3608.1,2.7715312]
[1754066988457,4.6254,3608.3,3608.2,3.23016499]
[1754066988458,4.487,3608.3,3608.2,3.23016499]
[1754066988658,0.001,3608.4,3608.3,3.32138818]
[1754066988830,0.001,3608.4,3608.3,12.63624921]
[1754066989033,0.001,3608.4,3608.3,13.53334921]
[1754066990268,0.001,3608.8,3608.6,0.55]
[1754066990472,0.001,3608.8,3608.4,5.77131138]
[1754066990473,0.001,3608.9,3608.8,3.0]
[1754066990643,0.001,3609.0,3608.9,12.63578845]
[1754066991058,0.001,3609.0,3608.9,13.67128845]
[1754066991782,0.001,3609.0,3608.9,0.1384]
[1754066991934,0.001,3609.0,3608.5,0.4587]
[1754066992140,4.486,3609.0,3608.3,3.55]
[1754066992339,4.486,3609.0,3608.3,0.55]
[1754066992674,4.486,3609.0,3608.6,0.1384]
[1754066992836,4.486,3609.0,3608.4,2.90963726]
[1754066993034,4.486,3609.0,3608.4,2.90970407]
[1754066993269,4.486,3609.0,3608.5,2.77117485]
[1754066993471,4.9264,3609.0,3608.4,0.1384]
[1754066994038,7.69725714,3609.0,3608.4,0.1384]
[1754066994574,5.98703744,3609.0,3608.2,3.0]
[1754066994773,0.1384,3608.7,3608.2,0.1384]
[1754066995273,4.9264,3609.0,3607.2,9.75326103]
[1754066995274,0.4404,3608.6,3607.2,9.75326103]
[1754066995491,0.1384,3608.4,3607.8,2.91017119]
[1754066995651,4.484,3608.3,3607.8,0.1384]
[1754066996042,4.484,3608.3,3607.8,0.5971]
[1754066996273,4.484,3608.3,3607.8,3.36885708]
[1754066996577,4.484,3608.2,3608.0,2.77156644]
[1754066996777,0.1384,3608.4,3608.0,2.77156644]
[1754066996778,0.1384,3608.4,3608.1,0.4587]
[1754066997079,4.6224,3608.4,3608.2,0.4587]
[1754066997779,4.6224,3608.4,3608.3,0.4587]
[1754066998182,4.484,3608.4,3608.3,0.4587]
[1754066998573,0.001,3609.0,3608.3,0.4587]
[1754066998787,4.484,3608.9,3608.3,0.8971]
[1754066998991,0.1394,3609.0,3608.8,0.55]
[1754066999309,0.001,3609.0,3608.9,0.5971]
[1754066999513,0.001,3609.0,3608.9,3.36802742]
[1754067000675,0.001,3609.0,3608.9,3.80642742]
[1754067001059,0.001,3609.0,3608.9,4.35642742]
[1754067001850,1e-08,3609.0,3608.9,4.35642742]
[1754067002054,4.482,3610.0,3609.9,2.77015983]
[1754067002282,4.482,3610.0,3609.9,12.63502086]
[1754067002491,4.482,3610.0,3609.9,0.1384]
[1754067002764,4.9224,3610.0,3609.5,2.908819]
[1754067003389,4.9224,3610.0,3609.5,0.1384]
[1754067003390,0.4404,3609.9,3609.5,0.1384]
[1754067003548,7.25210476,3610.0,3609.5,0.1384]
[1754067003549,4.482,3610.0,3609.5,0.1384]
[1754067003751,4.98818,3610.0,3609.5,0.1384]
[1754067004090,4.98818,3610.0,3609.1,0.4587]
[1754067004091,5.42858,3610.0,3609.2,3.3206971]
[1754067004290,5.42858,3610.0,3609.5,2.77045645]
[1754067004459,4.482,3610.0,3609.7,2.77026567]
[1754067004785,4.481,3609.9,3609.8,0.4587]
[1754067004955,4.481,3609.9,3609.6,2.77033531]
[1754067005155,4.481,3609.9,3609.6,3.22903531]
[1754067005371,4.481,3609.9,3609.7,2.77031176]
[1754067005576,4.481,3609.9,3609.6,0.4587]
[1754067005985,4.481,3609.9,3609.7,2.77025387]
[1754067006287,6.8014,3610.4,3609.8,1.0355]
[1754067006487,4.481,3610.3,3610.2,2.76987288]
[1754067006785,4.481,3610.3,3610.0,0.1384]
[1754067006990,0.1384,3610.1,3609.6,0.1384]
[1754067007292,0.1384,3610.1,3609.7,3.22895836]
[1754067008005,0.1384,3610.1,3609.7,0.4587]
[1754067008204,0.1384,3610.1,3609.7,3.22901237]
[1754067008406,9.43279848,3610.4,3609.7,3.22901237]
[1754067008407,4.48,3610.2,3609.9,0.55]
[1754067008548,4.48,3610.2,3610.1,2.77000637]
[1754067008749,0.1384,3610.5,3610.2,2.76986828]
[1754067008981,4.48,3610.4,3610.3,2.76985292]
[1754067009186,0.1384,3610.8,3610.4,0.55]
[1754067009360,4.48,3610.7,3610.5,3.22839948]
[1754067009561,4.479,3610.7,3610.6,3.3666518]
[1754067010102,0.1384,3611.1,3610.8,2.76944865]
[1754067010254,4.479,3611.0,3610.6,0.5768]
[1754067010450,4.479,3611.0,3610.7,3.22822726]
[1754067010687,0.1384,3611.1,3610.8,3.31944449]
[1754067010986,4.479,3611.1,3610.9,3.36648644]
[1754067011151,7.8270479,3611.1,3610.6,0.1384]
[1754067011352,2.76959435,3610.7,3609.7,3.22895178]
[1754067011549,0.1384,3610.4,3609.9,9.31486103]
[1754067011760,4.479,3610.6,3610.4,0.1384]
[1754067011987,0.1384,3610.5,3610.0,0.1384]
[1754067012189,0.1384,3610.3,3609.3,0.4587]
[1754067012393,0.1384,3610.1,3609.6,0.1384]
[1754067012553,0.1384,3610.1,3609.0,5.77081369]
[1754067012554,4.9194,3610.0,3609.0,0.4587]
[1754067012752,2.77021462,3609.9,3609.0,0.4587]
[1754067012986,2.77021462,3609.9,3609.1,2.77077387]
[1754067012987,0.1384,3609.6,3609.1,2.77077387]
[1754067013201,4.478,3609.5,3609.2,2.77068503]
[1754067013363,4.478,3609.5,3609.0,0.5971]
[1754067013563,4.478,3609.5,3609.0,0.1384]
[1754067013764,0.46164,3609.4,3608.5,0.002]
[1754067013986,4.478,3609.3,3608.5,0.002]
[1754067014187,2.77070816,3609.2,3608.5,2.77322727]
[1754067014402,4.478,3609.3,3608.5,2.77322727]
[1754067014403,7.24864567,3609.3,3608.5,2.77322727]
[1754067014553,4.478,3609.3,3608.7,2.77101502]
[1754067014757,4.478,3609.3,3608.6,3.22983517]
[1754067015409,4.478,3609.3,3608.6,0.4587]
[1754067015565,7.24864747,3609.3,3608.6,3.22984402]
[1754067015757,4.478,3609.3,3608.6,3.22984402]
[1754067015960,7.2486411,3609.3,3608.6,3.22984402]
[1754067016184,4.478,3609.3,3608.6,3.22980888]
[1754067016764,4.478,3609.3,3608.6,0.4587]
[1754067016978,7.24862465,3609.3,3608.6,0.4587]
[1754067017185,7.24862465,3609.3,3608.5,0.002]
[1754067017186,3.21185314,3609.2,3608.5,0.002]
[1754067017387,0.4411,3609.2,3608.6,2.77109914]
[1754067017556,7.74046103,3609.3,3608.6,2.77109914]
[1754067017758,2.770703,3609.2,3608.5,2.77321244]
[1754067017958,4.96984,3609.3,3608.6,2.77115619]
[1754067018160,4.96984,3609.3,3608.5,0.002]
[1754067018161,2.77079668,3609.1,3608.5,0.002]
[1754067018456,0.4411,3609.6,3608.5,0.002]
[1754067018457,2.77040078,3609.6,3608.6,2.77114262]
[1754067018682,2.77056885,3609.4,3608.7,3.22745169]
[1754067018881,4.477,3609.5,3608.5,0.002]
[1754067019083,0.4411,3609.8,3608.8,0.4564]
[1754067019285,2.77092934,3608.9,3608.5,0.002]
[1754067019488,2.77108099,3608.7,3608.5,0.002]
[1754067019796,2.77115778,3608.6,3608.5,0.002]
[1754067019995,3.21325778,3608.6,3608.5,0.002]
[1754067020293,3.0,3609.6,3608.5,0.002]
[1754067020294,0.4411,3608.9,3608.5,0.002]
[1754067020513,4.477,3608.8,3608.5,0.002]
[1754067020707,4.9181,3608.8,3608.5,0.002]
[1754067021016,4.477,3608.8,3608.5,0.002]
[1754067021707,3.21190394,3609.1,3608.5,0.002]
[1754067021910,4.477,3609.0,3608.6,0.4564]
[1754067022220,4.477,3609.0,3608.5,0.002]
[1754067022826,2.77115778,3608.6,3608.5,0.002]
[1754067022979,7.24815778,3608.6,3608.5,0.002]
[1754067023181,7.69025778,3608.6,3608.5,0.002]
[1754067023504,5.9652325,3608.6,3608.5,0.002]
[1754067023706,4.6154,3608.6,3608.5,0.002]
[1754067023877,0.1384,3608.6,3608.5,0.4584]
[1754067024078,4.6154,3608.6,3608.5,0.4584]
[1754067024279,5.0565,3608.6,3608.5,0.002]
[1754067024484,4.6154,3608.6,3608.5,0.002]
[1754067025797,0.1384,3608.6,3608.5,0.002]
[1754067026084,7.02,3610.0,3608.7,2.77108099]
[1754067026085,4.476,3608.8,3608.7,2.77108099]
[1754067026286,6.657,3610.1,3608.8,2.77096755]
[1754067026529,6.657,3610.1,3609.6,2.7703812]
[1754067026530,4.476,3610.0,3609.6,2.7703812]
[1754067026706,6.657,3610.1,3609.7,0.4564]
[1754067026921,0.1384,3609.8,3609.7,3.21991332]
[1754067027218,6.657,3610.1,3610.0,2.7700831]
[1754067027423,11.133,3610.1,3609.8,2.77023657]
[1754067027733,11.133,3610.1,3609.8,0.4564]
[1754067028437,11.133,3610.1,3609.7,0.1384]
[1754067028438,11.5741,3610.1,3609.7,0.1384]
[1754067028650,11.133,3610.1,3609.8,0.4564]
[1754067028849,11.133,3610.1,3609.7,0.1384]
[1754067029000,0.1384,3609.9,3609.5,2.77043966]
[1754067029200,0.1384,3609.9,3609.5,3.22683966]
[1754067029394,0.1384,3609.9,3608.8,7.0666073]
[1754067029633,0.1384,3609.5,3609.1,2.77077206]
[1754067029805,0.1384,3609.3,3608.9,2.77088439]
[1754067030015,4.476,3609.2,3608.7,3.5948]
[1754067030427,4.476,3609.2,3608.7,6.36585593]
[1754067030746,4.476,3609.2,3608.8,2.77094533]
[1754067030912,4.476,3609.2,3608.7,3.36582918]
[1754067031111,0.4411,3609.1,3608.5,0.002]
[1754067031316,0.1384,3608.8,3608.5,0.002]
[1754067031516,0.1384,3608.6,3608.5,0.002]
[1754067032701,0.1384,3608.6,3608.5,2.77323458]
[1754067032916,0.1384,3608.6,3608.5,0.002]
[1754067033099,0.1384,3608.6,3608.5,2.77323458]
[1754067033302,4.475,3608.6,3608.5,4.23369052]
[1754067033514,4.474,3608.6,3608.5,4.37209052]
[1754067033924,4.474,3608.6,3608.5,1.60085594]
[1754067034131,4.474,3608.6,3608.5,0.002]
[1754067034398,4.6124,3608.6,3608.5,0.002]
[1754067034848,7.82465778,3608.6,3608.5,0.002]
[1754067035000,7.82565778,3608.6,3608.5,0.002]
[1754067035806,10.82565778,3608.6,3608.5,0.002]
[1754067036006,12.18533043,3608.6,3608.5,1e-08]
[1754067037712,12.73533043,3608.6,3608.5,1e-08]
[1754067039713,12.18633043,3608.6,3608.5,1e-08]
[1754067041054,12.73633043,3608.6,3608.5,1e-08]
[1754067042025,8.26133043,3608.6,3608.5,1e-08]
[1754067042232,12.18533043,3608.6,3608.5,1e-08]
[1754067042549,12.18433043,3608.6,3608.5,1e-08]
[1754067042941,11.74223043,3608.6,3608.5,1e-08]
[1754067043142,12.18333043,3608.6,3608.5,1e-08]
[1754067043835,7.26923043,3608.6,3608.5,1e-08]
[1754067044009,11.74323043,3608.6,3608.5,0.45640001]
[1754067044417,3.1384,3608.6,3608.5,0.45640001]
[1754067044652,10.38355778,3608.6,3608.5,0.45640001]
[1754067044950,10.38355778,3608.6,3608.5,1e-08]
[1754067045116,10.82565778,3608.6,3608.5,1e-08]
[1754067045516,10.82465778,3608.6,3608.5,1e-08]
[1754067045811,12.18423065,3608.6,3608.5,1e-08]
[1754067046429,13.84923065,3608.6,3608.5,1e-08]
[1754067048518,7.26913065,3608.6,3608.5,0.49550001]
[1754067048743,10.38255778,3608.6,3608.5,0.95860001]
[1754067049063,10.38255778,3608.6,3608.5,1e-08]
[1754067049264,10.82595778,3608.6,3608.5,1e-08]
[1754067049566,12.49095778,3608.6,3608.5,1e-08]
[1754067050123,12.49195778,3608.6,3608.5,1e-08]
[1754067050322,14.29536131,3608.6,3608.5,1e-08]
[1754067050833,14.29436131,3608.6,3608.5,1e-08]
[1754067052320,13.85096131,3608.6,3608.5,1e-08]
[1754067053526,4.583,3608.4,3606.1,0.002]
[1754067053879,2.77282375,3606.5,3606.1,0.4975]
[1754067054032,4.472,3606.4,3606.2,0.4955]
[1754067054360,4.666,3607.5,3606.2,0.4955]
[1754067054361,4.665,3607.5,3606.2,2.7729491]
[1754067054664,3.0,3607.2,3606.1,0.002]
[1754067054858,2.77249987,3606.9,3606.2,0.9586]
[1754067055062,4.471,3606.8,3606.2,0.4631]
[1754067055260,4.471,3606.8,3606.3,0.4955]
[1754067055460,7.24359398,3606.8,3606.3,0.4955]
[1754067055665,4.471,3606.7,3606.4,0.4631]
[1754067055957,19.06631148,3608.3,3606.5,0.4955]
[1754067055958,4.471,3606.6,3606.5,0.4955]
[1754067056875,4.471,3606.6,3606.5,0.9586]
[1754067057364,4.471,3606.6,3606.5,3.73137138]
[1754067057565,4.471,3606.6,3606.5,0.9586]
[1754067058224,4.471,3606.6,3606.5,13.68921247]
[1754067058827,4.471,3606.6,3606.5,1.60904047]
[1754067059044,4.471,3606.6,3606.5,0.9586]
[1754067059961,7.2436945,3606.6,3606.5,0.4955]
[1754067060129,4.471,3606.6,3606.1,0.9606]
[1754067060328,4.471,3606.6,3606.2,0.4955]
[1754067060530,4.471,3606.6,3606.3,0.9586]
[1754067060729,7.24375204,3606.6,3606.4,0.4955]
[1754067060960,4.471,3606.6,3606.3,0.4631]
[1754067061267,4.471,3606.6,3606.5,0.4955]
[1754067061268,7.24369525,3606.6,3606.5,0.4955]
[1754067061589,7.24369525,3606.6,3606.1,0.002]
[1754067061793,2.77290792,3606.4,3606.1,0.002]
[1754067061937,7.24293759,3606.3,3606.1,0.4975]
[1754067062132,4.47,3606.3,3606.1,0.4975]
[1754067062359,4.47,3606.3,3606.1,0.002]
[1754067062560,4.47,3606.3,3606.2,0.4955]
[1754067062765,7.24292515,3606.3,3606.1,0.002]
[1754067063246,7.24294722,3606.3,3606.1,0.002]
[1754067063432,4.47,3606.3,3606.1,0.002]
[1754067063861,4.47,3606.3,3606.1,0.4975]
[1754067064470,0.1384,3606.2,3606.1,0.4975]
[1754067064993,2.91140205,3606.2,3606.1,0.4975]
[1754067065141,2.91140205,3606.2,3606.1,0.002]
[1754067065335,3.92682803,3606.2,3606.1,0.002]
[1754067065753,1.15382598,3606.2,3606.1,0.002]
[1754067065958,0.1384,3606.2,3606.1,0.4975]
[1754067066157,2.91140205,3606.2,3606.1,0.002]
[1754067066640,3.81190205,3606.2,3606.1,0.002]
[1754067067255,2.91140205,3606.2,3606.1,0.002]
[1754067067669,3.81190205,3606.2,3606.1,0.002]
[1754067067977,7.24200205,3606.2,3606.1,0.002]
[1754067068141,7.38040205,3606.2,3606.1,0.002]
[1754067069376,8.28090205,3606.2,3606.1,0.002]
[1754067069672,11.28090205,3606.2,3606.1,0.002]
[1754067070775,10.24200205,3606.2,3606.1,0.002]
[1754067071070,3.0,3606.2,3606.1,0.002]
[1754067071383,6.663,3606.6,3606.1,0.4975]
[1754067071538,0.1384,3606.2,3606.1,0.9606]
[1754067071735,4.6064,3606.2,3606.1,0.9606]
[1754067072972,0.1384,3606.2,3606.1,3.73367894]
[1754067073173,0.1384,3606.2,3606.1,4.10744683]
[1754067073471,4.468,3606.2,3606.1,4.10744683]
[1754067073672,4.468,3606.2,3606.1,1.33436789]
[1754067073877,4.6064,3606.2,3606.1,0.002]
[1754067074176,10.37940205,3606.2,3606.1,0.002]
[1754067074365,11.27990205,3606.2,3606.1,0.002]
[1754067075154,11.27990205,3606.2,3606.1,1e-08]
[1754067075353,11.82990205,3606.2,3606.1,1e-08]
[1754067075682,5.77315585,3606.0,3605.9,1e-08]
[1754067075878,10.37955585,3606.0,3605.9,1e-08]
[1754067076182,10.83815585,3606.0,3605.9,1e-08]
[1754067076478,11.27825585,3606.0,3605.9,1e-08]
[1754067078081,3.32323275,3605.9,3605.8,1e-08]
[1754067078258,5.8447367,3605.9,3605.8,1e-08]
[1754067078668,5.8447367,3605.9,3603.9,2.77476425]
[1754067078669,2.7734635,3605.6,3605.5,1e-08]
[1754067078980,10.9288635,3605.6,3605.5,1e-08]
[1754067079145,12.99505449,3605.6,3605.5,1e-08]
[1754067079500,13.89375449,3605.6,3605.5,1e-08]
[1754067079663,15.55875449,3605.6,3605.5,1e-08]
[1754067080382,15.76727353,3605.6,3605.5,1e-08]
[1754067080682,9.63527353,3605.6,3605.5,1e-08]
[1754067080890,14.10227353,3605.6,3605.5,1e-08]
[1754067081779,12.44505449,3605.6,3605.5,1e-08]
[1754067081981,7.97805449,3605.6,3605.5,1e-08]
[1754067082195,4.6054,3605.6,3605.5,0.95040001]
[1754067082490,7.3788635,3605.6,3605.5,0.48630001]
[1754067082892,5.9118635,3605.6,3605.5,0.48630001]
[1754067083198,10.3788635,3605.6,3605.5,0.48630001]
[1754067083862,0.1384,3605.6,3605.5,0.95040001]
[1754067084062,4.6044,3605.6,3605.5,0.95040001]
[1754067084307,0.1384,3605.6,3605.5,3.72394043]
[1754067084587,2.77277267,3606.5,3605.7,2.77331304]
[1754067084742,2.77277267,3606.5,3605.5,4.09634523]
[1754067084743,6.663,3606.6,3606.3,2.77291847]
[1754067084924,4.466,3606.4,3605.8,0.02773309]
[1754067085089,0.1384,3606.5,3606.4,2.77281084]
[1754067085295,4.466,3606.5,3606.4,2.77281084]
[1754067085496,6.663,3606.6,3606.5,2.77277138]
[1754067085690,11.129,3606.6,3606.5,2.77277138]
[1754067085892,11.129,3606.6,3606.5,0.9504]
[1754067086393,0.001,3606.7,3606.6,3.3226945]
[1754067086597,4.467,3606.7,3606.6,7.98885054]
[1754067086820,4.467,3606.7,3606.6,7.9611236]
[1754067087826,0.001,3606.7,3606.6,7.9611236]
[1754067089025,0.001,3606.7,3606.6,6.7230945]
[1754067089221,0.001,3606.7,3606.6,3.7230945]
[1754067089422,0.001,3606.7,3606.5,0.1384]
[1754067089622,0.001,3606.7,3606.6,0.4863]
[1754067089827,0.001,3606.7,3606.6,0.9504]
[1754067090030,0.586,3606.7,3605.9,0.1384]
[1754067090233,0.4476,3606.7,3606.0,0.4863]
[1754067090432,0.1384,3606.1,3606.0,3.25943112]
[1754067090634,4.6014,3606.1,3606.0,0.9504]
[1754067090918,4.6014,3606.1,3606.0,3.72355585]
[1754067091336,4.6014,3606.1,3606.0,4.373241]
[1754067091337,0.1384,3606.1,3606.0,4.373241]
[1754067091500,0.001,3606.7,3606.6,2.7726945]
[1754067091705,4.464,3606.7,3606.3,2.77289768]
[1754067092055,4.464,3606.7,3606.4,3.72324155]
[1754067092341,4.464,3606.7,3606.5,0.9504]